fUSD/lending_fUSD_20240619
["ID","MTS","AMOUNT","RATE_DAILY","PERIOD"]
[329917106,1718830252735,-500.0,0.00013698,2]
[329917107,1718830252745,-151.0,0.00013698,2]
[329917108,1718830252755,-151.0,0.00013698,2]
[329917109,1718830252764,-151.0,0.00013698,2]
[329917110,1718830252774,-151.0,0.00013698,2]
[329917111,1718830252783,-151.0,0.00013698,2]
[329917112,1718830252792,-151.0,0.00013698,2]
[329917113,1718830252802,-500.0,0.00013698,2]
[329917114,1718830252811,-459.30524025,0.00013698,2]
[329917115,1718830253487,-217.62475975,0.00013698,2]
[329917116,1718830253497,-151.0,0.00013698,2]
[329917117,1718830253506,-500.0,0.00013698,2]
[329917118,1718830253515,-500.0,0.00013698,2]
[329917119,1718830253524,-947.34,0.00013698,2]
[329917120,1718830253534,-744.51,0.00013698,2]
[329917121,1718830253543,-500.0,0.00013698,2]
[329917122,1718830253552,-500.0,0.00013698,2]
[329917123,1718830253561,-500.0,0.00013698,2]
[329917124,1718830253572,-500.0,0.00013698,2]
[329917125,1718830253580,-1137.05,0.00013698,2]
[329917126,1718830253589,-1953.8,0.00013698,2]
[329917127,1718830253598,-500.0,0.00013698,2]
[329917128,1718830253608,-500.0,0.00013698,2]
[329917129,1718830253617,-500.0,0.00013698,2]
[329917130,1718830253627,-500.0,0.00013698,2]
[329917131,1718830253636,-500.0,0.00013698,2]
[329917132,1718830253645,-500.0,0.00013698,2]
[329917133,1718830253655,-142.10691515,0.00013698,2]
[329917134,1718830253698,-357.89308485,0.00013698,2]
[329917135,1718830253708,-232.85947144,0.00013698,2]
[329917136,1718830253720,-1323.57052856,0.00013698,2]
[329917137,1718830253731,-442.07747144,0.00013698,2]
[329917138,1718830253742,-57.92252856,0.00013698,2]
[329917139,1718830253751,-593.04575925,0.00013698,2]
[329917140,1718830253762,-479.48424075,0.00013698,2]
[329917141,1718830253771,-500.0,0.00013698,2]
[329917142,1718830253780,-500.0,0.00013698,2]
[329917143,1718830253789,-500.0,0.00013698,2]
[329917144,1718830253800,-1681.65,0.00013698,2]
[329917145,1718830253808,-527.14119763,0.00013698,2]
[329917146,1718830253818,-500.0,0.00013698,2]
[329917147,1718830253827,-308.16776764,0.00013698,2]
[329917148,1718830253836,-500.0,0.00013698,2]
[329917149,1718830253846,-500.0,0.00013698,2]
[329917150,1718830253856,-500.0,0.00013698,2]
[329917151,1718830253868,-500.0,0.00013698,2]
[329917152,1718830253879,-500.0,0.00013698,2]
[329917153,1718830253890,-500.0,0.00013698,2]
[329917154,1718830253905,-1119.40216199,0.00013698,2]
[329917155,1718830253932,-864.72783801,0.00013698,2]
[329917156,1718830253941,-1626.4,0.00013698,2]
[329917157,1718830253954,-815.19,0.00013698,2]
[329917158,1718830253965,-384.74238601,0.00013698,2]
[329917159,1718830253976,-764.33,0.00013698,2]
[329917160,1718830253987,-500.0,0.00013698,2]
[329917161,1718830253996,-500.0,0.00013698,2]
[329917162,1718830254005,-500.0,0.00013698,2]
[329917163,1718830254015,-987.99,0.00013698,2]
[329917164,1718830254025,-500.0,0.00013698,2]
[329917165,1718830254034,-500.0,0.00013698,2]
[329917166,1718830254044,-500.0,0.00013698,2]
[329917167,1718830254053,-500.0,0.00013698,2]
[329917168,1718830254062,-500.0,0.00013698,2]
[329917169,1718830254071,-519.99,0.00013698,2]
[329917170,1718830254080,-500.0,0.00013698,2]
[329917171,1718830254090,-501.10028484,0.00013698,2]
[329917172,1718830254099,-500.0,0.00013698,2]
[329917173,1718830254108,-500.0,0.00013698,2]
[329917174,1718830254117,-500.0,0.00013698,2]
[329917175,1718830254127,-696.75,0.00013698,2]
[329917176,1718830254137,-1209.94,0.00013698,2]
[329917177,1718830254146,-500.0,0.00013698,2]
[329917178,1718830254155,-545.44,0.00013698,2]
[329917179,1718830254164,-1097.75,0.00013698,2]
[329917180,1718830254173,-500.0,0.00013698,2]
[329917181,1718830254183,-500.0,0.00013698,2]
[329917182,1718830254192,-397.30382844,0.00013698,2]
[329917183,1718830254206,-102.69617156,0.00013698,2]
[329917184,1718830254215,-483.11463665,0.00013698,2]
[329917185,1718830254226,-16.88536335,0.00013698,2]
[329917186,1718830254235,-500.0,0.00013698,2]
[329917187,1718830254245,-500.0,0.00013698,2]
[329917188,1718830254255,-500.0,0.00013698,2]
[329917189,1718830254265,-500.0,0.00013698,2]
[329917190,1718830254275,-151.0,0.00013698,2]
[329917191,1718830254284,-151.0,0.00013698,2]
[329917192,1718830254294,-151.0,0.00013698,2]
[329917193,1718830254303,-278.47963357,0.00013698,2]
[329917194,1718830254312,-151.0,0.00013698,2]
[329917195,1718830254322,-692.47,0.00013698,2]
[329917196,1718830254331,-237.49542201,0.00013698,2]
[329917197,1718830254343,-262.50457799,0.00013698,2]
[329917198,1718830254353,-500.0,0.00013698,2]
[329917199,1718830254362,-500.0,0.00013698,2]
[329917200,1718830254371,-500.0,0.00013698,2]
[329917201,1718830254380,-1603.37,0.00013698,2]
[329917202,1718830254389,-151.0,0.00013698,2]
[329917203,1718830254399,-500.0,0.00013698,2]
[329917204,1718830254408,-500.0,0.00013698,2]
[329917205,1718830254417,-151.0,0.00013698,2]
[329917206,1718830254426,-500.0,0.00013698,2]
[329917207,1718830254436,-500.0,0.00013698,2]
[329917208,1718830254445,-151.0,0.00013698,2]
[329917209,1718830254455,-224.065128,0.00013698,2]
[329917210,1718830254464,-500.0,0.00013698,2]
[329917211,1718830254473,-500.0,0.00013698,2]
[329917212,1718830254493,-1931.08,0.00013698,2]
[329917213,1718830254503,-500.0,0.00013698,2]
[329917214,1718830254513,-500.0,0.00013698,2]
[329917215,1718830254522,-500.0,0.00013698,2]
[329917216,1718830254531,-500.0,0.00013698,2]
[329917217,1718830254541,-500.0,0.00013698,2]
[329917218,1718830254550,-881.32,0.00013698,2]
[329917219,1718830254560,-500.0,0.00013698,2]
[329917220,1718830254569,-151.0,0.00013698,2]
[329917221,1718830254579,-500.0,0.00013698,2]
[329917222,1718830254588,-500.0,0.00013698,2]
[329917223,1718830254598,-500.0,0.00013698,2]
[329917224,1718830254608,-3538.76,0.00013698,2]
[329917225,1718830254618,-500.0,0.00013698,2]
[329917226,1718830254627,-500.0,0.00013698,2]
[329917227,1718830254636,-1064.85,0.00013698,2]
[329917228,1718830254646,-500.0,0.00013698,2]
[329917229,1718830254655,-500.0,0.00013698,2]
[329917230,1718830254664,-500.0,0.00013698,2]
[329917231,1718830254674,-500.0,0.00013698,2]
[329917232,1718830254683,-500.0,0.00013698,2]
[329917233,1718830254692,-911.81753893,0.00013698,2]
[329917234,1718830254707,-219.96246107,0.00013698,2]
[329917235,1718830254717,-500.0,0.00013698,2]
[329917236,1718830254727,-500.0,0.00013698,2]
[329917237,1718830254736,-500.0,0.00013698,2]
[329917238,1718830254746,-500.0,0.00013698,2]
[329917239,1718830254756,-605.92,0.00013698,2]
[329917240,1718830254766,-500.0,0.00013698,2]
[329917241,1718830254775,-500.0,0.00013698,2]
[329917242,1718830254785,-644.38,0.00013698,2]
[329917243,1718830254795,-500.0,0.00013698,2]
[329917244,1718830254804,-698.49,0.00013698,2]
[329917245,1718830254814,-500.0,0.00013698,2]
[329917246,1718830254824,-500.0,0.00013698,2]
[329917247,1718830254833,-500.0,0.00013698,2]
[329917248,1718830254843,-500.0,0.00013698,2]
[329917249,1718830254853,-500.0,0.00013698,2]
[329917250,1718830254863,-500.0,0.00013698,2]
[329917251,1718830254872,-229.92714493,0.00013698,2]
[329917252,1718830254881,-500.0,0.00013698,2]
[329917253,1718830254891,-1464.62,0.00013698,2]
[329917254,1718830254903,-500.0,0.00013698,2]
[329917255,1718830254917,-500.0,0.00013698,2]
[329917256,1718830254926,-151.0,0.00013698,2]
[329917257,1718830254936,-151.0,0.00013698,2]
[329917258,1718830254945,-500.0,0.00013698,2]
[329917259,1718830254954,-500.0,0.00013698,2]
[329917260,1718830254964,-158.886369,0.00013698,2]
[329917261,1718830254973,-500.0,0.00013698,2]
[329917262,1718830254983,-3049.0,0.00013698,2]
[329917263,1718830254994,-500.0,0.00013698,2]
[329917264,1718830255004,-500.0,0.00013698,2]
[329917265,1718830255016,-566.99244439,0.00013698,2]
[329917266,1718830255025,-500.0,0.00013698,2]
[329917267,1718830255035,-500.0,0.00013698,2]
[329917268,1718830255045,-316.87222174,0.00013698,2]
[329917269,1718830255059,-2278.07777826,0.00013698,2]
[329917270,1718830255069,-1422.65,0.00013698,2]
[329917271,1718830255079,-500.0,0.00013698,2]
[329917272,1718830255089,-549.85097571,0.00013698,2]
[329917273,1718830255098,-500.0,0.00013698,2]
[329917274,1718830255108,-500.0,0.00013698,2]
[329917275,1718830255123,-500.0,0.00013698,2]
[329917276,1718830255134,-500.0,0.00013698,2]
[329917277,1718830255144,-362.44124602,0.00013698,2]
[329917278,1718830256080,-150.0,0.00013137,2]
[329917279,1718830256091,-155.0,0.00013695,2]
[329917280,1718830256101,-137.55875398,0.00013698,2]
[329917281,1718830256110,-447.7585631,0.00013698,2]
[329917282,1718830256140,-29296.3254,0.00012937,2]
[329917283,1718830256150,-77.39398495,0.00013698,2]
[329917284,1718830256160,-1189.49,0.00013698,2]
[329917285,1718830256170,-500.0,0.00013698,2]
[329917286,1718830256180,-1100.06,0.00013698,2]
[329917287,1718830256190,-151.0,0.00013698,2]
[329917288,1718830256200,-500.0,0.00013698,2]
[329917289,1718830256210,-151.0,0.00013698,2]
[329917290,1718830256220,-608.64876011,0.00013698,2]
[329917291,1718830256229,-151.0,0.00013698,2]
[329917292,1718830256239,-478.37118551,0.00013698,2]
[329917293,1718830256249,-151.0,0.00013698,2]
[329917294,1718830256259,-151.0,0.00013698,2]
[329917295,1718830256269,-500.0,0.00013698,2]
[329917296,1718830256280,-515.59815118,0.00013698,2]
[329917297,1718830256290,-609.17,0.00013698,2]
[329917298,1718830256299,-151.0,0.00013698,2]
[329917299,1718830256309,-284.793952,0.00013698,2]
[329917300,1718830256319,-500.0,0.00013698,2]
[329917301,1718830256329,-518.6,0.00013698,2]
[329917302,1718830256339,-6509.29,0.00013698,2]
[329917303,1718830256349,-500.0,0.00013698,2]
[329917304,1718830256359,-500.0,0.00013698,2]
[329917305,1718830256369,-500.0,0.00013698,2]
[329917306,1718830256379,-500.0,0.00013698,2]
[329917307,1718830256389,-500.0,0.00013698,2]
[329917308,1718830256400,-1101.7,0.00013698,2]
[329917309,1718830256410,-500.0,0.00013698,2]
[329917310,1718830256421,-500.0,0.00013698,2]
[329917311,1718830256430,-575.08,0.00013698,2]
[329917312,1718830256440,-500.0,0.00013698,2]
[329917313,1718830256451,-500.0,0.00013698,2]
[329917314,1718830256460,-500.0,0.00013698,2]
[329917315,1718830256470,-500.0,0.00013698,2]
[329917316,1718830256480,-500.0,0.00013698,2]
[329917317,1718830256489,-151.0,0.00013698,2]
[329917318,1718830256499,-500.0,0.00013698,2]
[329917319,1718830256509,-500.0,0.00013698,2]
[329917320,1718830256519,-151.0,0.00013698,2]
[329917321,1718830256529,-151.6658,0.00013698,2]
[329917322,1718830256540,-154.422781,0.00013698,2]
[329917323,1718830256550,-154.422781,0.00013698,2]
[329917324,1718830256560,-154.422781,0.00013698,2]
[329917325,1718830256571,-151.0,0.00013698,2]
[329917326,1718830256581,-500.0,0.00013698,2]
[329917327,1718830256591,-154.422781,0.00013698,2]
[329917328,1718830256610,-151.0,0.00013698,2]
[329917329,1718830256622,-154.422781,0.00013698,2]
[329917330,1718830256633,-154.422781,0.00013698,2]
[329917331,1718830256644,-151.0,0.00013698,2]
[329917332,1718830256655,-500.0,0.00013698,2]
[329917333,1718830256665,-151.0,0.00013698,2]
[329917334,1718830256677,-500.0,0.00013698,2]
[329917335,1718830256688,-154.422781,0.00013698,2]
[329917336,1718830256699,-151.0,0.00013698,2]
[329917337,1718830256709,-151.0,0.00013698,2]
[329917338,1718830256720,-500.0,0.00013698,2]
[329917339,1718830256731,-151.0,0.00013698,2]
[329917340,1718830256742,-500.0,0.00013698,2]
[329917341,1718830256752,-1367.81,0.00013698,2]
[329917342,1718830256763,-154.979066,0.00013698,2]
[329917343,1718830256774,-154.422781,0.00013698,2]
[329917344,1718830256785,-154.422781,0.00013698,2]
[329917345,1718830256795,-500.0,0.00013698,2]
[329917346,1718830256806,-500.0,0.00013698,2]
[329917347,1718830256816,-500.0,0.00013698,2]
[329917348,1718830256827,-154.422781,0.00013698,2]
[329917349,1718830256836,-154.422781,0.00013698,2]
[329917350,1718830256847,-500.0,0.00013698,2]
[329917351,1718830256857,-500.0,0.00013698,2]
[329917352,1718830256868,-500.0,0.00013698,2]
[329917353,1718830256878,-154.422781,0.00013698,2]
[329917354,1718830256888,-154.422781,0.00013698,2]
[329917355,1718830256900,-500.0,0.00013698,2]
[329917356,1718830256915,-154.422781,0.00013698,2]
[329917357,1718830256926,-500.0,0.00013698,2]
[329917358,1718830256937,-500.0,0.00013698,2]
[329917359,1718830256947,-151.0,0.00013698,2]
[329917360,1718830256958,-151.0,0.00013698,2]
[329917361,1718830256968,-151.0,0.00013698,2]
[329917362,1718830256978,-151.0,0.00013698,2]
[329917363,1718830256992,-151.0,0.00013698,2]
[329917364,1718830257003,-500.0,0.00013698,2]
[329917365,1718830257013,-500.0,0.00013698,2]
[329917366,1718830257024,-500.0,0.00013698,2]
[329917367,1718830257034,-500.0,0.00013698,2]
[329917368,1718830257044,-151.0,0.00013698,2]
[329917369,1718830257054,-1360.43,0.00013698,2]
[329917370,1718830257064,-500.0,0.00013698,2]
[329917371,1718830257075,-500.0,0.00013698,2]
[329917372,1718830257086,-500.0,0.00013698,2]
[329917373,1718830257096,-500.0,0.00013698,2]
[329917374,1718830257106,-500.0,0.00013698,2]
[329917375,1718830257116,-1010.81,0.00013698,2]
[329917376,1718830257126,-500.0,0.00013698,2]
[329917377,1718830257136,-500.0,0.00013698,2]
[329917378,1718830257145,-620.63977484,0.00013698,2]
[329917379,1718830257156,-500.0,0.00013698,2]
[329917380,1718830257166,-500.0,0.00013698,2]
[329917381,1718830257176,-500.0,0.00013698,2]
[329917382,1718830257187,-500.0,0.00013698,2]
[329917383,1718830257197,-500.0,0.00013698,2]
[329917384,1718830257208,-1074.44,0.00013698,2]
[329917385,1718830257218,-500.0,0.00013698,2]
[329917386,1718830257228,-500.0,0.00013698,2]
[329917387,1718830257238,-964.22,0.00013698,2]
[329917388,1718830257249,-3587.33,0.00013698,2]
[329917389,1718830257259,-500.0,0.00013698,2]
[329917390,1718830257270,-511.13,0.00013698,2]
[329917391,1718830257280,-565.59,0.00013698,2]
[329917392,1718830257291,-151.0,0.00013698,2]
[329917393,1718830257302,-500.0,0.00013698,2]
[329917394,1718830257312,-517.77,0.00013698,2]
[329917395,1718830257323,-529.28052477,0.00013698,2]
[329917396,1718830257333,-151.0,0.00013698,2]
[329917397,1718830257343,-500.0,0.00013698,2]
[329917398,1718830257354,-151.0,0.00013698,2]
[329917399,1718830257365,-500.0,0.00013698,2]
[329917400,1718830257375,-151.0,0.00013698,2]
[329917401,1718830257385,-500.0,0.00013698,2]
[329917402,1718830257395,-244.397959,0.00013698,2]
[329917403,1718830257405,-500.0,0.00013698,2]
[329917404,1718830257415,-244.397959,0.00013698,2]
[329917405,1718830257425,-500.0,0.00013698,2]
[329917406,1718830257436,-244.397959,0.00013698,2]
[329917407,1718830257446,-795.77,0.00013698,2]
[329917408,1718830257457,-500.0,0.00013698,2]
[329917409,1718830257468,-1260.77,0.00013698,2]
[329917410,1718830257482,-244.397959,0.00013698,2]
[329917411,1718830257493,-244.397959,0.00013698,2]
[329917412,1718830257503,-244.397959,0.00013698,2]
[329917413,1718830257514,-244.397959,0.00013698,2]
[329917414,1718830257524,-500.0,0.00013698,2]
[329917415,1718830257534,-244.397959,0.00013698,2]
[329917416,1718830257545,-244.397959,0.00013698,2]
[329917417,1718830257555,-244.397959,0.00013698,2]
[329917418,1718830257566,-500.0,0.00013698,2]
[329917419,1718830257577,-500.0,0.00013698,2]
[329917420,1718830257586,-1415.2,0.00013698,2]
[329917421,1718830257597,-244.397959,0.00013698,2]
[329917422,1718830257607,-557.92,0.00013698,2]
[329917423,1718830257617,-500.0,0.00013698,2]
[329917424,1718830257628,-244.397959,0.00013698,2]
[329917425,1718830257638,-244.397959,0.00013698,2]
[329917426,1718830257648,-500.0,0.00013698,2]
[329917427,1718830257659,-244.397959,0.00013698,2]
[329917428,1718830257669,-1000.0,0.00013698,5]
[329917429,1718830257679,-500.0,0.00013698,2]
[329917430,1718830257689,-615.41,0.00013698,2]
[329917431,1718830257699,-500.0,0.00013698,2]
[329917432,1718830257710,-885.43,0.00013698,2]
[329917433,1718830257720,-817.41,0.00013698,2]
[329917434,1718830257731,-500.0,0.00013698,2]
[329917435,1718830257741,-500.0,0.00013698,2]
[329917436,1718830257752,-7324.15,0.00013698,2]
[329917437,1718830257763,-523.95356029,0.00013698,2]
[329917438,1718830257774,-250.0,0.00013698,2]
[329917439,1718830257785,-151.0,0.00013698,2]
[329917440,1718830258126,-1937.67,0.00013698,2]
[329917441,1718830258136,-2131.44,0.00013698,2]
[329917442,1718830258146,-620.74,0.00013698,2]
[329917443,1718830258156,-500.0,0.00013698,2]
[329917444,1718830258166,-2139.94,0.00013698,2]
[329917445,1718830258175,-500.0,0.00013698,2]
[329917446,1718830258185,-500.0,0.00013698,2]
[329917447,1718830258195,-500.0,0.00013698,2]
[329917448,1718830258204,-500.0,0.00013698,2]
[329917449,1718830258214,-500.0,0.00013698,2]
[329917450,1718830258223,-500.0,0.00013698,2]
[329917451,1718830258233,-500.0,0.00013698,2]
[329917452,1718830258242,-553.39,0.00013698,2]
[329917453,1718830258252,-8985.8,0.00013698,2]
[329917454,1718830258262,-2040.6276,0.00013698,2]
[329917455,1718830258274,-509.50840955,0.00013698,2]
[329917456,1718830258282,-511.8312123,0.00013698,2]
[329917457,1718830258292,-564.02859095,0.00013698,2]
[329917458,1718830258302,-918.07,0.00013698,2]
[329917459,1718830258312,-151.0,0.00013698,2]
[329917460,1718830258324,-500.0,0.00013698,2]
[329917461,1718830258333,-1738.98,0.00013698,2]
[329917462,1718830258342,-918.07,0.00013698,2]
[329917463,1718830258351,-918.07,0.00013698,2]
[329917464,1718830258361,-918.07,0.00013698,2]
[329917465,1718830258370,-918.07,0.00013698,2]
[329917466,1718830258380,-918.07,0.00013698,2]
[329917467,1718830258390,-918.07,0.00013698,2]
[329917468,1718830258399,-500.0,0.00013698,2]
[329917469,1718830258409,-500.0,0.00013698,2]
[329917470,1718830258418,-918.07,0.00013698,2]
[329917471,1718830258428,-500.0,0.00013698,2]
[329917472,1718830258438,-2826.13,0.00013698,2]
[329917473,1718830258447,-918.07,0.00013698,2]
[329917474,1718830258457,-9901.7,0.00013698,2]
[329917475,1718830258467,-500.6503837,0.00013698,2]
[329917476,1718830258477,-500.0,0.00013698,2]
[329917477,1718830258486,-500.0,0.00013698,2]
[329917478,1718830258496,-151.0,0.00013698,2]
[329917479,1718830258505,-500.0,0.00013698,2]
[329917480,1718830258515,-500.0,0.00013698,2]
[329917481,1718830258524,-500.0,0.00013698,2]
[329917482,1718830258534,-156.334521,0.00013698,2]
[329917483,1718830258544,-500.0,0.00013698,2]
[329917484,1718830258553,-2542.75,0.00013698,2]
[329917485,1718830258563,-500.0,0.00013698,2]
[329917486,1718830258572,-500.0,0.00013698,2]
[329917487,1718830258582,-6403.79,0.00013698,2]
[329917488,1718830258592,-500.0,0.00013698,2]
[329917489,1718830258602,-500.0,0.00013698,2]
[329917490,1718830258611,-500.0,0.00013698,2]
[329917491,1718830258621,-1065.08,0.00013698,2]
[329917492,1718830258630,-204.32757623,0.00013698,2]
[329917493,1718830258640,-500.0,0.00013698,2]
[329917494,1718830258650,-500.0,0.00013698,2]
[329917495,1718830258659,-7740.49,0.00013698,2]
[329917496,1718830258669,-500.0,0.00013698,2]
[329917497,1718830258679,-500.0,0.00013698,2]
[329917498,1718830258688,-1229.94,0.00013698,2]
[329917499,1718830258698,-500.0,0.00013698,2]
[329917500,1718830258707,-500.0,0.00013698,2]
[329917501,1718830258716,-6496.5,0.00013698,2]
[329917502,1718830258726,-151.0,0.00013698,2]
[329917503,1718830258736,-500.0,0.00013698,2]
[329917504,1718830258746,-1129.63,0.00013698,2]
[329917505,1718830258755,-3230.17,0.00013698,2]
[329917506,1718830258765,-151.0,0.00013698,2]
[329917507,1718830258775,-500.0,0.00013698,2]
[329917508,1718830258784,-151.0,0.00013698,2]
[329917509,1718830258794,-500.0,0.00013698,2]
[329917510,1718830258803,-18389.84,0.00013698,2]
[329917511,1718830258813,-151.0,0.00013698,2]
[329917512,1718830258822,-500.0,0.00013698,2]
[329917513,1718830258831,-151.0,0.00013698,2]
[329917514,1718830258841,-500.0,0.00013698,2]
[329917515,1718830258850,-151.0,0.00013698,2]
[329917516,1718830258860,-151.0,0.00013698,2]
[329917517,1718830258869,-500.0,0.00013698,2]
[329917518,1718830258879,-500.0,0.00013698,2]
[329917519,1718830258889,-500.0,0.00013698,2]
[329917520,1718830258900,-500.0,0.00013698,2]
[329917521,1718830258911,-500.0,0.00013698,2]
[329917522,1718830258920,-777.87,0.00013698,2]
[329917523,1718830258930,-500.0,0.00013698,2]
[329917524,1718830258939,-4145.2,0.00013698,2]
[329917525,1718830258948,-500.0,0.00013698,2]
[329917526,1718830258958,-500.0,0.00013698,2]
[329917527,1718830258967,-500.0,0.00013698,2]
[329917528,1718830258979,-500.0,0.00013698,2]
[329917529,1718830258988,-500.0,0.00013698,2]
[329917530,1718830258997,-500.0,0.00013698,2]
[329917531,1718830259007,-500.0,0.00013698,2]
[329917532,1718830259016,-626.34173895,0.00013698,2]
[329917533,1718830259026,-500.0,0.00013698,2]
[329917534,1718830259035,-500.0,0.00013698,2]
[329917535,1718830259045,-3871.59,0.00013698,2]
[329917536,1718830259055,-500.0,0.00013698,2]
[329917537,1718830259064,-1519.66,0.00013698,2]
[329917538,1718830259074,-500.0,0.00013698,2]
[329917539,1718830259083,-500.0,0.00013698,2]
[329917540,1718830259092,-503.90739854,0.00013698,2]
[329917541,1718830259103,-500.0,0.00013698,2]
[329917542,1718830259114,-9288.43,0.00013698,2]
[329917543,1718830259125,-500.0,0.00013698,2]
[329917544,1718830259134,-500.0,0.00013698,2]
[329917545,1718830259145,-1616.104508,0.00013698,2]
[329917546,1718830259154,-500.0,0.00013698,2]
[329917547,1718830259164,-207.69896197,0.00013698,2]
[329917548,1718830259249,-292.30103803,0.00013698,2]
[329917549,1718830259261,-1616.104508,0.00013698,2]
[329917550,1718830259271,-495.17357973,0.00013698,2]
[329917551,1718830259435,-4.82642027,0.00013698,2]
[329917552,1718830259445,-1441.09483545,0.00013698,2]
[329917553,1718830259456,-175.00967255,0.00013698,2]
[329917554,1718830259466,-1616.104508,0.00013698,2]
[329917555,1718830259475,-1616.104508,0.00013698,2]
[329917556,1718830259484,-500.0,0.00013698,2]
[329917557,1718830259494,-1616.104508,0.00013698,2]
[329917558,1718830259503,-1580.15,0.00013698,2]
[329917559,1718830259513,-524.94,0.00013698,2]
[329917560,1718830259522,-1616.104508,0.00013698,2]
[329917561,1718830259531,-151.0,0.00013698,2]
[329917562,1718830259540,-818.71,0.00013698,2]
[329917563,1718830259549,-218.18831152,0.00013698,2]
[329917564,1718830259584,-1316.41168848,0.00013698,2]
[329917565,1718830259594,-1616.104508,0.00013698,2]
[329917566,1718830259604,-500.0,0.00013698,2]
[329917567,1718830259613,-151.0,0.00013698,2]
[329917568,1718830259623,-1616.104508,0.00013698,2]
[329917569,1718830259632,-5000.0,0.00013698,2]
[329917570,1718830259642,-1616.104508,0.00013698,2]
[329917571,1718830259651,-500.0,0.00013698,2]
[329917572,1718830259660,-151.0,0.00013698,2]
[329917573,1718830259670,-500.0,0.00013698,2]
[329917574,1718830259680,-3376.04,0.00013698,2]
[329917575,1718830259689,-500.0,0.00013698,2]
[329917576,1718830259699,-151.0,0.00013698,2]
[329917577,1718830259707,-500.0,0.00013698,2]
[329917578,1718830259717,-1616.104508,0.00013698,2]
[329917579,1718830259727,-2159.63,0.00013698,2]
[329917580,1718830259736,-500.0,0.00013698,2]
[329917581,1718830259745,-151.0,0.00013698,2]
[329917582,1718830259755,-2423.05,0.00013698,2]
[329917583,1718830259764,-151.0,0.00013698,2]
[329917584,1718830259774,-151.0,0.00013698,2]
[329917585,1718830259784,-1616.104508,0.00013698,2]
[329917586,1718830259794,-512.89662593,0.00013698,2]
[329917587,1718830259805,-500.0,0.00013698,2]
[329917588,1718830259814,-5366.92,0.00013698,2]
[329917589,1718830259825,-500.0,0.00013698,2]
[329917590,1718830259835,-1616.104508,0.00013698,2]
[329917591,1718830259845,-500.0,0.00013698,2]
[329917592,1718830259855,-352.06236977,0.00013698,2]
[329917593,1718830259864,-2036.9,0.00013698,2]
[329917594,1718830259874,-1616.104508,0.00013698,2]
[329917595,1718830259884,-500.0,0.00013698,2]
[329917596,1718830259894,-1185.5,0.00013698,2]
[329917597,1718830259906,-500.53595487,0.00013698,2]
[329917598,1718830259917,-151.0,0.00013698,2]
[329917599,1718830259927,-500.0,0.00013698,2]
[329917600,1718830259936,-151.0,0.00013698,2]
[329917601,1718830259947,-1050.4,0.00013698,2]
[329917602,1718830259957,-151.0,0.00013698,2]
[329917603,1718830259967,-493.52576796,0.00013698,2]
[329917604,1718830259977,-151.0,0.00013698,2]
[329917605,1718830259988,-151.0,0.00013698,2]